bitfinex/quotes_BTCUSD_20260101
["timestamp","ask_amount","ask_price","bid_price","bid_amount"]
[1767305349334,0.04534791,88569.0,88557.0,0.0002]
[1767305351245,0.04534791,88567.0,88557.0,0.0002]
[1767305352324,0.05663879,88567.0,88557.0,0.0002]
[1767305352539,0.04534791,88567.0,88557.0,0.0002]
[1767305352821,0.0566393,88563.0,88545.0,0.01167419]
[1767305352965,0.04534791,88559.0,88547.0,0.01129343]
[1767305353380,0.04534791,88559.0,88545.0,0.01167419]
[1767305353381,0.04534791,88559.0,88545.0,0.0003805]
[1767305353582,0.04534791,88556.0,88545.0,0.0003805]
[1767305353793,0.01124293,88557.0,88545.0,0.0003805]
[1767305353794,0.04534791,88554.0,88545.0,0.0003805]
[1767305354194,0.04534791,88554.0,88545.0,0.00073209]
[1767305354993,0.04534791,88554.0,88546.0,0.01129356]
[1767305355630,0.04534791,88554.0,88547.0,0.01129343]
[1767305356017,0.04534791,88554.0,88545.0,0.01202578]
[1767305356536,0.04534791,88554.0,88545.0,0.00073209]
[1767305356729,0.04534791,88554.0,88545.0,0.01202578]
[1767305357123,0.01124293,88553.0,88545.0,0.01202578]
[1767305358059,0.04534791,88554.0,88553.0,0.00067786]
[1767305358972,7.009e-05,88553.0,88545.0,0.01202578]
[1767305359909,7.009e-05,88553.0,88545.0,0.00073209]
[1767305360073,7.009e-05,88553.0,88545.0,0.01202578]
[1767305361423,7.009e-05,88553.0,88546.0,0.01129356]
[1767305361631,7.009e-05,88553.0,88545.0,0.01202578]
[1767305363582,0.01136,88559.0,88556.0,0.02553548]
[1767305363763,0.01136,88559.0,88557.0,0.01129216]
[1767305366431,0.04569953,88568.0,88558.0,0.01129203]
[1767305366671,0.04569953,88576.0,88562.0,0.01129152]
[1767305366804,0.01136,88575.0,88565.0,0.43849571]
[1767305369095,0.01136,88575.0,88565.0,0.44978685]
[1767305370199,0.01136,88575.0,88565.0,0.43849571]
[1767305372455,0.0002,88577.0,88564.0,0.03682674]
[1767305372660,0.01136,88576.0,88564.0,0.02553548]
[1767305372856,0.01136,88576.0,88564.0,0.01129126]
[1767305374492,0.01136,88576.0,88563.0,0.01129139]
[1767305374708,0.04569953,88576.0,88563.0,0.01129139]
[1767305374895,0.01136,88575.0,88563.0,0.01129139]
[1767305375513,0.01136,88575.0,88564.0,0.01129126]
[1767305376301,0.05705953,88575.0,88564.0,0.01129126]
[1767305377519,0.01136,88574.0,88565.0,0.01129114]
[1767305377669,0.01136,88574.0,88566.0,0.01129101]
[1767305378089,0.01136,88574.0,88565.0,0.01129114]
[1767305378541,0.01136,88574.0,88566.0,0.01129101]
[1767305378819,0.01136,88573.0,88566.0,0.01129101]
[1767305379125,0.01136,88573.0,88565.0,0.01129114]
[1767305380106,0.01136,88573.0,88564.0,0.01129126]
[1767305381335,0.01136,88573.0,88563.0,0.01129139]
[1767305381541,0.01136,88573.0,88564.0,0.01129126]
[1767305381711,0.01136,88573.0,88563.0,0.01129139]
[1767305381914,0.01136,88573.0,88564.0,0.01129126]
[1767305382556,0.01136,88573.0,88563.0,0.01129139]
[1767305382747,0.01136,88573.0,88564.0,0.01129126]
[1767305384265,0.01136,88573.0,88560.0,0.50598752]
[1767305384444,0.01136,88573.0,88560.0,0.44952917]
[1767305384614,0.01136,88573.0,88562.0,0.01129152]
[1767305385037,0.01136,88573.0,88561.0,0.01129165]
[1767305385236,0.01136,88573.0,88563.0,0.01129139]
[1767305385438,0.01136,88573.0,88564.0,0.01129126]
[1767305385896,0.01136,88573.0,88563.0,0.01129139]
[1767305386271,0.01136,88573.0,88564.0,0.01129126]
[1767305386466,0.01136,88573.0,88562.0,0.01129152]
[1767305386905,0.01136,88573.0,88563.0,0.01129139]
[1767305388087,0.01136,88573.0,88562.0,0.01129152]
[1767305390248,0.01136,88573.0,88564.0,0.01129126]
[1767305391045,0.01136,88573.0,88562.0,0.01129152]
[1767305391647,0.01136,88573.0,88563.0,0.01129139]
[1767305391842,0.05705953,88573.0,88563.0,0.01129139]
[1767305395220,0.05705953,88573.0,88562.0,0.01129152]
[1767305396350,0.04569953,88573.0,88564.0,0.01129126]
[1767305396486,0.01136,88572.0,88564.0,0.01129126]
[1767305397149,0.01136,88572.0,88565.0,0.01129114]
[1767305397490,0.01136,88572.0,88564.0,0.01129126]
[1767305398972,0.01136,88572.0,88565.0,0.01129114]
[1767305400065,0.01136,88572.0,88564.0,0.01129126]
[1767305401219,0.01136,88572.0,88565.0,0.01129114]
[1767305401841,0.01136,88572.0,88561.0,0.01129165]
[1767305402070,0.01136,88572.0,88562.0,0.01129152]
[1767305409542,0.01136,88572.0,88564.0,0.01129126]
[1767305410704,0.01136,88572.0,88563.0,0.01129139]
[1767305411023,0.01136,88572.0,88564.0,0.01129126]
[1767305411392,0.01136,88572.0,88563.0,0.01129139]
[1767305412326,0.01136,88572.0,88565.0,0.01129114]
[1767305412525,0.01136,88572.0,88564.0,0.01129126]
[1767305413343,0.04829817,88571.0,88560.0,0.4382374]
[1767305413552,0.000549,88564.0,88560.0,0.4382374]
[1767305413754,0.04829817,88571.0,88557.0,0.01129216]
[1767305413959,0.04829817,88571.0,88558.0,0.01129203]
[1767305414706,0.04829817,88571.0,88559.0,0.0112919]
[1767305414909,0.04829817,88571.0,88558.0,0.01129203]
[1767305415045,0.04829817,88571.0,88559.0,0.0112919]
[1767305415459,0.04829817,88571.0,88558.0,0.01129203]
[1767305415658,0.04829817,88571.0,88559.0,0.0112919]
[1767305416039,0.04829817,88571.0,88560.0,0.01129177]
[1767305416664,0.04829817,88571.0,88560.0,0.44952917]
[1767305417304,0.04829817,88571.0,88560.0,0.4382374]
[1767305417506,0.04829817,88571.0,88560.0,0.44952917]
[1767305417728,0.04829817,88571.0,88560.0,0.4382374]
[1767305417918,0.04829817,88571.0,88560.0,0.44952917]
[1767305418318,0.04829817,88571.0,88560.0,0.4382374]
[1767305419714,0.000549,88560.0,88557.0,0.01129216]
[1767305419919,0.04829817,88571.0,88558.0,0.01129203]
[1767305420158,0.04829817,88571.0,88560.0,0.4382374]
[1767305420368,0.04829817,88571.0,88560.0,0.4387864]
[1767305422862,0.000549,88560.0,88555.0,0.000273]
[1767305423059,0.000549,88560.0,88551.0,0.01136]
[1767305423060,0.04829817,88559.0,88551.0,0.01136]
[1767305424015,0.01129037,88571.0,88551.0,0.01136]
[1767305424016,0.0490676,88576.0,88562.0,0.01129152]
[1767305424167,0.01136,88581.0,88572.0,0.01129024]
[1767305424330,0.01136,88581.0,88568.0,0.0564535]
[1767305424532,0.01136,88581.0,88567.0,0.01129088]
[1767305424533,0.01136,88581.0,88572.0,0.01129024]
[1767305424738,0.01136,88581.0,88574.0,0.01128999]
[1767305424966,0.01136,88581.0,88573.0,0.01129012]
[1767305425159,0.01136,88581.0,88574.0,0.01128999]
[1767305425365,0.0490676,88580.0,88577.0,0.01128961]
[1767305425798,0.0490676,88580.0,88576.0,0.01128973]
[1767305425999,0.0490676,88580.0,88577.0,0.01128961]
[1767305426499,0.0490676,88580.0,88576.0,0.01128973]
[1767305427498,0.0490676,88580.0,88577.0,0.01128961]
[1767305430744,0.0490676,88580.0,88578.0,0.05644742]
[1767305430945,0.0489946,88580.0,88578.0,0.05644742]
[1767305431722,0.0490676,88594.0,88582.0,0.01128897]
[1767305432013,0.0452,88595.0,88582.0,0.01128897]
[1767305432014,0.0490676,88592.0,88582.0,0.01128897]
[1767305432220,0.0490676,88592.0,88583.0,0.01128884]
[1767305432613,0.0490676,88592.0,88584.0,0.01128872]
[1767305432840,0.0490676,88592.0,88583.0,0.01128884]
[1767305433171,0.0603876,88591.0,88587.0,0.01128833]
[1767305433476,0.0490676,88589.0,88586.0,0.01128846]
[1767305433629,0.01132,88588.0,88586.0,0.01128846]
[1767305433951,0.0603876,88588.0,88586.0,0.01128846]
[1767305434171,0.0603876,88588.0,88586.0,0.06773062]
[1767305434337,0.0603876,88588.0,88586.0,0.01128846]
[1767305434535,0.0005035,88600.0,88590.0,0.01128795]
[1767305434894,0.0005035,88600.0,88590.0,0.44937329]
[1767305434895,0.01132,88599.0,88590.0,0.44937329]
[1767305435074,0.01132,88599.0,88591.0,0.01128782]
[1767305435279,0.0005035,88600.0,88592.0,0.0112877]
[1767305435280,0.01132,88598.0,88592.0,0.0112877]
[1767305435491,0.01132,88598.0,88591.0,0.01128782]
[1767305435650,0.01132,88598.0,88592.0,0.0112877]
[1767305436424,0.01132,88598.0,88593.0,0.01128757]
[1767305436615,0.01132,88598.0,88592.0,0.0112877]
[1767305436777,0.01132,88598.0,88593.0,0.01128757]
[1767305437657,0.0115314,88598.0,88593.0,0.01128757]
[1767305438447,0.0115314,88598.0,88592.0,1.2612877]
[1767305438683,0.0115314,88598.0,88592.0,1.249451]
[1767305440812,0.0115314,88598.0,88592.0,1.22619915]
[1767305440953,0.05643723,88594.0,88592.0,0.52789893]
[1767305441158,0.01128731,88595.0,88592.0,0.52789893]
[1767305441506,0.05643786,88593.0,88592.0,0.52789893]
[1767305441752,0.01128731,88595.0,88592.0,0.52789893]
[1767305441966,0.05643723,88594.0,88592.0,0.52789893]
[1767305442674,0.01128731,88595.0,88592.0,0.52789893]
[1767305443216,0.05643723,88594.0,88592.0,0.52789893]
[1767305456723,0.05643723,88594.0,88592.0,0.00710007]
[1767305456910,0.01128782,88591.0,88579.0,0.04771775]
[1767305457110,0.44940534,88590.0,88579.0,0.04771775]
[1767305458752,0.44940534,88590.0,88567.0,0.0564541]
[1767305458753,0.01128821,88588.0,88566.0,0.05900876]
[1767305458925,0.01128821,88588.0,88566.0,0.0591141]
[1767305459155,0.01128821,88588.0,88567.0,0.01129088]
[1767305459384,0.01128821,88588.0,88570.0,0.04771775]
[1767305459801,0.01128821,88588.0,88571.0,0.04771775]
[1767305459939,0.01128846,88586.0,88571.0,0.04771775]
[1767305460140,0.01128833,88587.0,88571.0,0.04771775]
[1767305460368,0.46069329,88590.0,88571.0,0.04771775]
[1767305460610,0.01128808,88589.0,88571.0,0.04771775]
[1767305461424,0.02260795,88590.0,88571.0,0.04771775]
[1767305461728,0.44940534,88590.0,88573.0,0.04771775]
[1767305465998,0.010771,88590.0,88580.0,0.43808534]
[1767305466148,0.010771,88590.0,88576.0,0.01128973]
[1767305466149,0.44885634,88590.0,88581.0,0.04771775]
[1767305477747,0.44885634,88590.0,88581.0,0.04716875]
[1767305479032,0.010771,88590.0,88581.0,0.04716875]
[1767305486264,0.010771,88590.0,88572.0,0.06774085]
[1767305486265,0.01128846,88586.0,88571.0,0.04804027]
[1767305486505,0.43808534,88581.0,88571.0,0.04804027]
[1767305486668,0.01132,88580.0,88571.0,0.04804027]
[1767305498539,0.01132,88580.0,88566.0,0.04814561]
[1767305503543,0.01132,88580.0,88566.0,0.05943662]
[1767305503751,0.45060442,88580.0,88566.0,0.04759561]
[1767305504066,0.01128961,88577.0,88559.0,0.04804027]
[1767305504269,0.01128935,88579.0,88559.0,0.04804027]
[1767305504719,0.46189365,88580.0,88561.0,0.04804027]
[1767305505810,0.01128935,88579.0,88561.0,0.05933192]
[1767305505999,0.45060442,88580.0,88562.0,0.04804027]
[1767305506164,0.45060442,88580.0,88562.0,0.05933179]
[1767305506584,0.46189365,88580.0,88562.0,0.04804027]
[1767305506786,0.45060442,88580.0,88562.0,0.04804027]
[1767305507000,0.46189365,88580.0,88562.0,0.04804027]
[1767305507191,0.01128935,88579.0,88562.0,0.04804027]
[1767305507466,0.46189365,88580.0,88562.0,0.04804027]
[1767305508213,0.01228301,88579.0,88562.0,0.04804027]
[1767305508443,0.00099366,88579.0,88562.0,0.04804027]
[1767305508650,0.01228301,88579.0,88562.0,0.04804027]
[1767305509615,0.00099366,88579.0,88562.0,0.04804027]
[1767305509962,0.01228301,88579.0,88562.0,0.04804027]
[1767305511447,0.01128948,88578.0,88562.0,0.04804027]
[1767305511654,0.00099366,88579.0,88562.0,0.04804027]
[1767305512486,0.01228301,88579.0,88562.0,0.04804027]
[1767305513481,0.01128948,88578.0,88562.0,0.04804027]
[1767305516592,0.01128935,88579.0,88562.0,0.04804027]
[1767305516793,0.01138544,88583.0,88579.0,0.000549]
[1767305517003,0.01132,88582.0,88569.0,0.04908854]
[1767305517410,0.01132,88582.0,88571.0,0.04908854]
[1767305517604,0.010221,88582.0,88571.0,0.04908854]
[1767305520025,0.010221,88582.0,88572.0,0.04908854]
[1767305522405,9.66e-05,88583.0,88572.0,0.04908854]
[1767305522563,0.01132,88582.0,88572.0,0.04908854]
[1767305522746,0.01132,88582.0,88573.0,0.04908854]
[1767305524070,0.01132,88582.0,88573.0,0.02928805]
[1767305542258,0.0452,88593.0,88573.0,0.02928805]
[1767305542464,0.01132,88592.0,88581.0,0.04908854]
[1767305542792,0.01132,88591.0,88581.0,0.04908854]
[1767305543200,0.01132,88591.0,88577.0,0.01128961]
[1767305543365,0.01132,88591.0,88578.0,0.01128948]
[1767305545286,0.01132,88591.0,88577.0,0.01128961]
[1767305545489,0.01132,88591.0,88576.0,0.06037827]
[1767305545730,0.01132,88591.0,88576.0,0.04908854]
[1767305554592,0.01132,88591.0,88580.0,0.43816822]
[1767305559416,0.13648772,88583.0,88580.0,0.43816822]
[1767305559623,0.13648772,88583.0,88569.0,0.01129063]
[1767305559624,0.03353743,88580.0,88525.0,0.0001493]
[1767305559898,0.03353743,88580.0,88537.0,0.04844143]
[1767305559899,0.01129216,88557.0,88537.0,0.04844143]
[1767305560032,0.01129216,88557.0,88525.0,0.05662995]
[1767305560033,0.01129279,88552.0,88546.0,0.04844143]
[1767305560235,0.01129318,88549.0,88546.0,0.04844143]
[1767305560476,0.01129318,88549.0,88538.0,0.04844143]
[1767305560477,0.01129382,88544.0,88538.0,0.04844143]
[1767305560629,0.01129394,88543.0,88538.0,0.04844143]
[1767305560834,0.01129343,88547.0,88538.0,0.04026376]
[1767305561043,0.01129292,88551.0,88538.0,0.04026376]
[1767305561044,0.05646487,88551.0,88538.0,0.04061535]
[1767305561265,0.44946127,88550.0,88538.0,0.04061535]
[1767305561469,0.01129343,88547.0,88538.0,0.04061535]
[1767305561670,0.0112933,88548.0,88538.0,0.04061535]
[1767305561986,0.01129318,88549.0,88538.0,0.04061535]
[1767305562350,0.44946127,88550.0,88538.0,0.04061535]
[1767305562784,0.44946127,88550.0,88538.0,0.00035159]
[1767305562785,0.01129382,88544.0,88538.0,0.00035159]
[1767305563036,0.0112942,88541.0,88538.0,0.00035159]
[1767305563184,0.06036766,88540.0,88526.0,0.04857503]
[1767305563367,0.06776673,88539.0,88536.0,8.2e-07]
[1767305563812,0.01129445,88539.0,88536.0,8.2e-07]
[1767305566893,0.01129458,88538.0,88533.0,0.00636082]
[1767305567408,0.01129445,88539.0,88533.0,0.00636082]
[1767305567818,0.01129458,88538.0,88533.0,0.00136082]
[1767305568337,0.01129484,88536.0,88526.0,0.0001336]
[1767305568495,0.01129522,88533.0,88530.0,0.01136]
[1767305569295,0.06776861,88537.0,88530.0,0.01136]
[1767305569296,0.01129471,88537.0,88530.0,0.01136]
[1767305569642,0.01129509,88534.0,88530.0,0.01136]
[1767305569849,0.01129522,88533.0,88530.0,0.01136]
[1767305570484,0.01129522,88533.0,88526.0,0.0001336]
[1767305570485,0.01129573,88529.0,88526.0,0.0001336]
[1767305570614,0.01129598,88527.0,88524.0,0.01136]
[1767305570813,0.01129598,88527.0,88524.0,0.01141562]
[1767305571657,0.06036919,88528.0,88524.0,0.01141562]
[1767305571854,0.04907333,88528.0,88524.0,0.01141562]
[1767305572403,0.01129649,88523.0,88512.0,0.0002319]
[1767305572606,0.01129675,88521.0,88513.0,0.01136]
[1767305572801,0.06047544,88521.0,88513.0,0.01136]
[1767305573062,0.04917869,88521.0,88513.0,0.01136]
[1767305573358,0.04917869,88521.0,88513.0,0.00636]
[1767305573655,0.011297,88519.0,88513.0,0.00636]
[1767305573864,0.06047544,88521.0,88513.0,0.00636]
[1767305573865,0.00010536,88521.0,88519.0,0.001099]
[1767305574078,0.00010536,88521.0,88515.0,0.01136]
[1767305574659,3.6e-07,88521.0,88515.0,0.01136]
[1767305578359,3.6e-07,88521.0,88515.0,0.00636]
[1767305580358,3.6e-07,88521.0,88515.0,0.08059234]
[1767305580570,3.6e-07,88521.0,88515.0,0.07690496]
[1767305582434,0.01129445,88539.0,88518.0,0.07423234]
[1767305582588,0.06776751,88538.0,88520.0,0.43816822]
[1767305582795,0.01129484,88536.0,88521.0,0.07423234]
[1767305583135,0.01129484,88536.0,88523.0,0.07423234]
[1767305583136,0.01129496,88535.0,88523.0,0.07423234]
[1767305583313,0.01129522,88533.0,88523.0,0.07423234]
[1767305583536,0.01129509,88534.0,88523.0,0.07423234]
[1767305583728,0.0677689,88537.0,88523.0,0.07423234]
[1767305583729,0.01129484,88536.0,88523.0,0.07423234]
[1767305583932,0.01129509,88534.0,88523.0,0.07423234]
[1767305584532,0.01129509,88534.0,88523.0,0.06923234]
[1767305584733,0.01129522,88533.0,88523.0,0.06923234]
[1767305584933,0.01129509,88534.0,88523.0,0.06923234]
[1767305585113,0.01129484,88536.0,88523.0,0.06923234]
[1767305586119,0.01129496,88535.0,88523.0,0.06923234]
[1767305587304,0.02429849,88534.0,88523.0,0.06923234]
[1767305587496,0.01129484,88536.0,88523.0,0.06923234]
[1767305587644,0.02429849,88535.0,88523.0,0.06923234]
[1767305587845,0.01129509,88534.0,88523.0,0.06923234]
[1767305588289,0.02432394,88533.0,88523.0,0.06923234]
[1767305588857,0.02432394,88532.0,88523.0,0.06923234]
[1767305589059,0.02432394,88531.0,88523.0,0.06923234]
[1767305589391,0.0348993,88530.0,88523.0,0.06423234]
[1767305589587,0.0348993,88529.0,88523.0,0.06423234]
[1767305589787,0.02387994,88528.0,88523.0,0.06423234]
[1767305589949,0.03040566,88535.0,88523.0,0.06423234]
[1767305590153,0.03040566,88535.0,88522.0,0.0566]
[1767305590154,0.01057536,88534.0,88526.0,0.07423234]
[1767305590365,0.00035156,88539.0,88527.0,0.07423234]
[1767305590589,0.00035156,88539.0,88530.0,0.07423234]
[1767305590815,0.00035156,88539.0,88531.0,0.01136]
[1767305593959,0.00035156,88539.0,88531.0,0.08559234]
[1767305601819,0.02437653,88538.0,88531.0,0.08559234]
[1767305603698,0.02437653,88538.0,88531.0,0.08059234]
[1767305603933,0.00759733,88538.0,88531.0,0.09188781]
[1767305604107,0.00035156,88539.0,88532.0,0.01129535]
[1767305605118,0.00035156,88539.0,88531.0,0.09188781]
[1767305605294,0.00035156,88539.0,88532.0,0.01129535]
[1767305605521,0.00035156,88539.0,88531.0,0.09188781]
[1767305606126,0.00035156,88539.0,88533.0,0.01129522]
[1767305606339,0.00035156,88539.0,88532.0,0.01129535]
[1767305607583,0.00035156,88539.0,88534.0,0.01129509]
[1767305607750,0.00035156,88539.0,88533.0,0.01129522]
[1767305608058,0.00035156,88539.0,88532.0,0.01129535]
[1767305608905,0.00035156,88539.0,88534.0,0.086645]
[1767305609104,0.00035156,88539.0,88534.0,0.07534991]
[1767305610974,0.00035156,88539.0,88533.0,0.01129522]
[1767305612234,0.00035156,88539.0,88534.0,0.01129509]
[1767305612637,0.00035156,88539.0,88535.0,0.01129496]
[1767305612878,0.00035156,88539.0,88534.0,0.01129509]
[1767305613071,0.00035156,88539.0,88533.0,0.01129522]
[1767305613375,0.00035156,88539.0,88534.0,0.01129509]
[1767305613790,0.00035156,88539.0,88535.0,0.0452]
[1767305614190,0.00035156,88539.0,88535.0,0.05649496]
[1767305614888,0.00035156,88539.0,88535.0,0.05149496]
[1767305615047,0.00035156,88539.0,88535.0,0.0402]
[1767305622527,0.00035156,88539.0,88535.0,0.0403071]
[1767305624718,0.00035156,88539.0,88535.0,0.0397581]
[1767305625822,0.0002,88544.0,88535.0,0.0397581]
[1767305626043,0.02442265,88543.0,88535.0,0.0397581]
[1767305635503,0.02442265,88543.0,88535.0,0.0387581]
[1767305643730,0.0002,88544.0,88535.0,0.0387581]
[1767305643948,0.02442858,88543.0,88535.0,0.0387581]
[1767305649106,0.0002,88544.0,88535.0,0.0387581]
[1767305655191,0.02443182,88543.0,88535.0,0.0387581]
[1767305655373,0.0002,88544.0,88535.0,0.0387581]
[1767305657000,0.02443233,88543.0,88535.0,0.0387581]
[1767305658276,0.0002,88544.0,88535.0,0.0387581]
[1767305659798,0.0002,88544.0,88535.0,0.02996499]
[1767305660332,0.02443302,88543.0,88535.0,0.02996499]
[1767305661169,0.0002,88544.0,88535.0,0.02996499]
[1767305662288,0.00027938,88544.0,88535.0,0.02996499]
[1767305663332,0.02443404,88543.0,88535.0,0.02996499]
[1767305663594,0.00027938,88544.0,88535.0,0.02996499]
[1767305664497,0.02443413,88543.0,88535.0,0.02996499]
[1767305672686,0.00027938,88544.0,88535.0,0.02996499]
[1767305675336,0.02443586,88543.0,88535.0,0.02996499]
[1767305679448,0.00027938,88544.0,88535.0,0.02996499]
[1767305683210,0.00027938,88544.0,88535.0,0.02985789]
[1767305685829,0.00027938,88544.0,88535.0,0.04115285]
[1767305687872,0.00027938,88544.0,88536.0,0.01129484]
[1767305688074,0.00027938,88544.0,88536.0,0.07821369]
[1767305688257,3.8e-07,88544.0,88538.0,0.01129458]
[1767305688422,3.8e-07,88544.0,88539.0,0.02261445]
[1767305688959,3.8e-07,88544.0,88539.0,0.01132]
[1767305696184,3.8e-07,88544.0,88539.0,0.07048337]
[1767305696385,3.8e-07,88544.0,88541.0,0.0112942]
[1767305696814,3.8e-07,88544.0,88542.0,0.05916337]
[1767305697027,0.0002139,88558.0,88548.0,0.0112933]
[1767305697226,0.0244187,88557.0,88549.0,0.01132]
[1767305699115,0.0002139,88558.0,88549.0,0.01132]
[1767305699985,0.0002139,88558.0,88549.0,0.02261318]
[1767305700191,0.0002139,88558.0,88549.0,0.0790786]
[1767305700589,0.0002139,88558.0,88549.0,0.02261318]
[1767305700801,0.0002139,88558.0,88550.0,0.01129305]
[1767305701017,0.0002139,88558.0,88551.0,0.01129292]
[1767305701450,0.0002139,88558.0,88552.0,0.01129279]
[1767305701656,0.0002139,88558.0,88551.0,0.01129292]
[1767305701872,0.0002139,88558.0,88550.0,0.01129305]
[1767305702099,0.0002139,88558.0,88549.0,0.02261318]
[1767305702327,0.0002139,88558.0,88549.0,0.01132]
[1767305702540,0.0002139,88558.0,88549.0,0.02261318]
[1767305702754,0.0002139,88558.0,88549.0,0.01132]
[1767305702966,0.0002139,88558.0,88549.0,0.02261318]
[1767305703683,0.0002139,88558.0,88550.0,0.01129305]
[1767305705159,0.0002139,88558.0,88551.0,0.01129292]
[1767305705462,0.0002139,88558.0,88550.0,0.01129305]
[1767305705603,0.0002139,88558.0,88551.0,0.01129292]
[1767305706051,0.0002139,88558.0,88552.0,0.01129279]
[1767305706622,0.0002139,88558.0,88550.0,0.01129305]
[1767305706818,0.0002139,88558.0,88551.0,0.01129292]
[1767305707223,0.0002139,88558.0,88549.0,0.02261318]
[1767305708343,0.0002139,88558.0,88549.0,0.01132]
[1767305709534,0.0002139,88558.0,88549.0,0.011041]
[1767305715131,0.0002139,88558.0,88550.0,0.0452]
[1767305719991,0.0002139,88558.0,88549.0,0.0029]
[1767305720197,0.0002139,88558.0,88550.0,0.05652]
[1767305727205,0.43862117,88560.0,88550.0,0.05652]
[1767305727206,0.47557308,88560.0,88550.0,0.05597]
[1767305727404,0.0112919,88559.0,88550.0,0.05597]
[1767305728316,0.06802991,88559.0,88550.0,0.05597]
[1767305728488,0.05673801,88559.0,88550.0,0.05597]
[1767305731774,0.05673801,88559.0,88550.0,0.05097]
[1767305732965,0.43012684,88560.0,88550.0,0.05097]
[1767305733295,0.02442259,88559.0,88550.0,0.05097]
[1767305733884,0.03571449,88559.0,88550.0,0.05097]
[1767305734115,0.0112919,88559.0,88550.0,0.05097]
[1767305734451,0.43012684,88560.0,88550.0,0.05097]
[1767305734653,0.02442111,88559.0,88550.0,0.05097]
[1767305735092,0.43012684,88560.0,88550.0,0.05097]
[1767305736880,0.0112919,88559.0,88550.0,0.05097]
[1767305737091,0.0357129,88559.0,88550.0,0.05097]
[1767305737301,0.0112919,88559.0,88550.0,0.05097]
[1767305738551,0.01129177,88560.0,88550.0,0.05097]
[1767305738911,0.06822953,88562.0,88550.0,0.05097]
[1767305739114,0.03571112,88561.0,88550.0,0.05097]
[1767305739464,0.05693801,88562.0,88550.0,0.05097]
[1767305739645,0.02441918,88561.0,88550.0,0.05097]
[1767305740675,0.05693801,88562.0,88550.0,0.05097]
[1767305740831,0.02441936,88561.0,88550.0,0.05097]
[1767305741436,0.05693801,88562.0,88550.0,0.05097]
[1767305742069,0.05693801,88562.0,88551.0,0.01129292]
[1767305742487,0.05693801,88562.0,88552.0,0.01129279]
[1767305743171,0.05638901,88562.0,88552.0,0.01129279]
[1767305743335,0.05638901,88562.0,88550.0,0.05097]
[1767305743535,0.05638901,88562.0,88550.0,0.06226305]
[1767305744632,0.05638901,88562.0,88551.0,0.01129292]
[1767305745034,0.05638901,88562.0,88550.0,0.06226305]
[1767305746643,0.05638901,88562.0,88551.0,0.01129292]
[1767305747173,0.05638901,88562.0,88552.0,0.01129279]
[1767305750209,0.05638901,88562.0,88553.0,0.01129267]
[1767305751284,0.05638901,88562.0,88552.0,0.01129279]
[1767305753073,0.05638901,88562.0,88550.0,0.05097]
[1767305753361,0.05638901,88562.0,88550.0,0.06226305]
[1767305753883,0.05638901,88562.0,88551.0,0.01129292]
[1767305754012,0.0001464,88566.0,88553.0,0.01129267]
[1767305754218,0.02441977,88565.0,88553.0,0.01129267]
[1767305754556,0.07835912,88565.0,88553.0,0.01129267]
[1767305754754,0.02441977,88564.0,88553.0,0.01129267]
[1767305755055,0.02441977,88564.0,88552.0,0.01129279]
[1767305756424,0.02441977,88564.0,88551.0,0.01129292]
[1767305758144,0.02441977,88564.0,88550.0,0.06226305]
[1767305758290,0.02441977,88564.0,88551.0,0.01129292]
[1767305758483,0.02441977,88564.0,88550.0,0.06226305]
[1767305758930,0.02441977,88564.0,88551.0,0.01129292]
[1767305759284,0.02441977,88564.0,88550.0,0.06226305]
[1767305760837,0.02441977,88564.0,88551.0,0.01129292]
[1767305761338,0.02441977,88564.0,88550.0,0.06226305]
[1767305761501,0.02441977,88564.0,88550.0,0.05097]
[1767305761680,0.07835912,88564.0,88550.0,0.05097]
[1767305761879,0.02441977,88563.0,88550.0,0.05097]
[1767305762149,0.05393935,88563.0,88550.0,0.05097]
[1767305764039,0.02442251,88562.0,88550.0,0.05097]
[1767305768686,0.02442251,88562.0,88549.0,0.01419318]
[1767305768859,0.02442251,88562.0,88550.0,0.01132]
[1767305769433,0.02442251,88562.0,88549.0,0.0029]
[1767305769634,0.02442251,88562.0,88550.0,0.01132]
[1767305769941,0.02442251,88562.0,88549.0,0.0029]
[1767305770378,0.02442251,88562.0,88550.0,0.01132]
[1767305773574,0.05393935,88563.0,88550.0,0.01132]
[1767305773773,0.02442795,88562.0,88550.0,0.01132]
[1767305782050,0.05393935,88563.0,88550.0,0.01132]
[1767305782349,0.02442799,88562.0,88550.0,0.01132]
[1767305798015,0.03571951,88562.0,88550.0,0.01132]
[1767305798214,0.02442799,88561.0,88550.0,0.01132]
[1767305798909,0.06523074,88563.0,88550.0,0.01132]
[1767305799109,0.02443112,88562.0,88550.0,0.01132]
[1767305799568,0.03572264,88562.0,88550.0,0.01132]
[1767305799769,0.02443112,88561.0,88550.0,0.01132]
[1767305800131,0.06523074,88563.0,88550.0,0.01132]
[1767305800336,0.02443113,88562.0,88550.0,0.01132]
[1767305805123,0.03572265,88562.0,88550.0,0.01132]
[1767305805243,0.02443113,88561.0,88550.0,0.01132]
[1767305805444,0.01129165,88561.0,88550.0,0.01132]
[1767305805883,0.01129152,88562.0,88550.0,0.01132]
[1767305806126,0.02443135,88561.0,88550.0,0.01132]
[1767305807072,0.01129152,88562.0,88550.0,0.01132]
[1767305807274,0.02443151,88561.0,88550.0,0.01132]
[1767305808209,0.06523074,88563.0,88550.0,0.01132]
[1767305808416,0.02443043,88562.0,88550.0,0.01132]
[1767305809980,0.01129165,88561.0,88550.0,0.01132]
[1767305810346,0.02443141,88560.0,88550.0,0.01132]
[1767305810624,0.05275145,88562.0,88550.0,0.01132]
[1767305810915,0.02443088,88561.0,88550.0,0.01132]
[1767305811296,0.03572253,88561.0,88550.0,0.01132]
[1767305811505,0.06404297,88562.0,88550.0,0.01132]
[1767305811703,0.0244307,88561.0,88550.0,0.01132]
[1767305813414,0.03572235,88561.0,88550.0,0.01132]
[1767305813614,0.06404297,88562.0,88550.0,0.01132]
[1767305813823,0.02443042,88561.0,88550.0,0.01132]
[1767305814335,0.01129177,88560.0,88550.0,0.01132]
[1767305814541,0.01129165,88561.0,88550.0,0.01132]
[1767305817076,0.06404297,88562.0,88550.0,0.01132]
[1767305817379,0.02443008,88561.0,88550.0,0.01132]
[1767305818165,0.03572173,88561.0,88550.0,0.01132]
[1767305818343,0.01129165,88561.0,88550.0,0.01132]
[1767305821162,0.05275145,88562.0,88550.0,0.01132]
[1767305821365,0.0244299,88561.0,88550.0,0.00784771]
[1767305821897,0.03572155,88561.0,88550.0,0.00784771]
[1767305822094,0.05275145,88562.0,88550.0,0.00784771]
[1767305822338,0.02442986,88561.0,88550.0,0.00784771]
[1767305822540,0.03572151,88561.0,88550.0,0.00784771]
[1767305822695,0.01129165,88561.0,88550.0,0.00784771]
[1767305823215,0.06404297,88562.0,88550.0,0.00784771]
[1767305823416,0.02442985,88561.0,88550.0,0.00784771]